bitfinex-derivatives/quotes_BTCF0:USTF0_20250919
["timestamp","ask_amount","ask_price","bid_price","bid_amount"]
[1758289696542,0.12844919,116390.0,116380.0,2.30984369]
[1758289696743,0.12844919,116390.0,116380.0,1.58480126]
[1758289697138,0.12844919,116390.0,116380.0,2.46428766]
[1758289698050,0.11560919,116390.0,116380.0,2.46428766]
[1758289698641,0.12060849,116390.0,116380.0,2.80037552]
[1758289698841,0.12060849,116390.0,116380.0,2.00677552]
[1758289699043,0.12060849,116390.0,116380.0,2.80029552]
[1758289699646,0.12060849,116390.0,116380.0,2.00677552]
[1758289699847,0.12060849,116390.0,116380.0,2.80013552]
[1758289700042,0.11560849,116390.0,116380.0,2.46404766]
[1758289700243,0.11860849,116390.0,116380.0,2.80013552]
[1758289700750,0.11860849,116390.0,116380.0,2.69252755]
[1758289701352,0.11160849,116390.0,116380.0,2.69152755]
[1758289702552,0.11160849,116390.0,116380.0,1.89816755]
[1758289702753,0.02572939,116390.0,116380.0,2.79897552]
[1758289703150,0.008,116390.0,116380.0,2.79897552]
[1758289704454,0.008,116390.0,116380.0,2.69136755]
[1758289704654,0.008,116390.0,116380.0,2.84511278]
[1758289705351,0.008,116390.0,116380.0,2.69136755]
[1758289705658,0.008,116390.0,116380.0,2.94136755]
[1758289707048,0.008,116390.0,116380.0,1.2966492]
[1758289707247,0.008,116390.0,116380.0,3.09563278]
[1758289707447,0.008,116390.0,116380.0,2.30191278]
[1758289707966,0.008,116390.0,116380.0,2.94192755]
[1758289708259,0.008,116390.0,116380.0,2.14816755]
[1758289708557,0.008,116390.0,116380.0,2.94192755]
[1758289708959,0.008,116390.0,116380.0,2.14816755]
[1758289709257,0.008,116390.0,116380.0,2.94184755]
[1758289710155,0.008,116390.0,116380.0,3.20454755]
[1758289711059,0.008,116390.0,116380.0,2.41086755]
[1758289711457,0.008,116390.0,116380.0,2.51826963]
[1758289711758,0.008,116390.0,116380.0,3.31214963]
[1758289711956,0.093879,116390.0,116380.0,3.31214963]
[1758289712260,0.008,116390.0,116380.0,3.31214963]
[1758289714161,0.008,116390.0,116380.0,2.51826963]
[1758289714359,0.0081,116390.0,116380.0,3.31182963]
[1758289715360,0.0081,116390.0,116380.0,3.33219282]
[1758289716260,0.0081,116390.0,116380.0,2.53863282]
[1758289716463,0.0081,116390.0,116380.0,3.33175282]
[1758289716766,0.0081,116390.0,116380.0,3.22435074]
[1758289718966,0.00161506,116410.0,116390.0,0.096019]
[1758289719268,0.0993739,116430.0,116420.0,0.0858569]
[1758289719459,0.01352,116430.0,116420.0,2.67416002]
[1758289719863,0.0834733,116440.0,116430.0,0.0916995]
[1758289720062,0.0969933,116440.0,116430.0,1.12267522]
[1758289720259,0.0969933,116440.0,116430.0,0.70173786]
[1758289720667,0.3469933,116440.0,116430.0,0.70173786]
[1758289720969,0.3469933,116440.0,116430.0,0.7108845]
[1758289721267,0.68208116,116440.0,116430.0,0.7108845]
[1758289721655,0.3469933,116440.0,116430.0,0.7108845]
[1758289721858,0.68208116,116440.0,116430.0,0.7108845]
[1758289722260,0.69408116,116440.0,116430.0,0.7118845]
[1758289722468,0.70108116,116440.0,116430.0,0.7128845]
[1758289723888,0.3659933,116440.0,116430.0,0.7128845]
[1758289725082,0.70108116,116440.0,116430.0,0.37779664]
[1758289725279,0.70108116,116440.0,116430.0,0.3462345]
[1758289725584,0.70108116,116440.0,116430.0,0.3683645]
[1758289725882,0.70108116,116440.0,116430.0,0.3462345]
[1758289726083,0.70108116,116440.0,116430.0,0.33708786]
[1758289726282,0.70108116,116440.0,116430.0,0.02413]
[1758289726487,0.70108116,116440.0,116430.0,0.35921786]
[1758289726786,0.3659933,116440.0,116430.0,0.002]
[1758289726984,0.70108116,116440.0,116430.0,0.002]
[1758289727182,0.70108116,116440.0,116430.0,0.33708786]
[1758289727674,0.70108116,116440.0,116430.0,0.35921786]
[1758289727876,1.39696902,116440.0,116430.0,0.002]
[1758289728486,1.41417455,116440.0,116430.0,0.002]
[1758289729982,1.87165293,116440.0,116430.0,0.002]
[1758289730383,1.07873293,116440.0,116430.0,0.002]
[1758289730687,1.87165293,116440.0,116430.0,0.002]
[1758289732089,0.1221596,116430.0,116420.0,0.06835954]
[1758289732277,0.1208969,116420.0,116410.0,0.74668768]
[1758289732486,0.9138169,116420.0,116410.0,0.74668768]
[1758289732790,0.1208969,116420.0,116410.0,0.83255198]
[1758289733486,0.9138169,116420.0,116410.0,0.74668768]
[1758289733682,0.1208969,116420.0,116410.0,0.74668768]
[1758289733888,0.9138169,116420.0,116410.0,0.74668768]
[1758289734192,0.9138169,116420.0,116410.0,0.41195358]
[1758289734490,0.9138169,116420.0,116410.0,0.74668768]
[1758289734876,0.1268969,116420.0,116410.0,0.74668768]
[1758289735082,0.9198169,116420.0,116410.0,0.74668768]
[1758289735790,0.9248169,116420.0,116410.0,0.74768768]
[1758289736687,0.9248169,116420.0,116410.0,0.72765559]
[1758289737593,1.259551,116420.0,116410.0,0.38393]
[1758289737787,1.259651,116420.0,116410.0,0.38393]
[1758289738585,0.9248769,116420.0,116410.0,0.38393]
[1758289739092,0.9248769,116420.0,116410.0,0.02313]
[1758289739791,0.9248769,116420.0,116410.0,0.38393]
[1758289739985,0.9248769,116420.0,116410.0,0.7186641]
[1758289741894,0.9248769,116420.0,116410.0,0.38393]
[1758289742098,1.259611,116420.0,116410.0,0.001]
[1758289742396,1.259611,116420.0,116410.0,0.02314]
[1758289742799,1.259611,116420.0,116410.0,0.7186741]
[1758289742800,0.1319969,116420.0,116410.0,0.7186741]
[1758289742984,0.9248769,116420.0,116410.0,0.8045384]
[1758289743190,0.1319969,116420.0,116410.0,0.8045384]
[1758289743798,0.9248769,116420.0,116410.0,0.8045384]
[1758289744098,0.1102069,116420.0,116410.0,0.8045384]
[1758289744299,0.0969569,116420.0,116410.0,1.0545384]
[1758289744501,0.0969569,116420.0,116410.0,1.0615784]
[1758289744796,0.0969569,116420.0,116410.0,1.1691944]
[1758289745296,0.1100969,116420.0,116410.0,1.0762901]
[1758289746686,0.1329069,116420.0,116410.0,0.9686741]
[1758289747193,0.1329069,116420.0,116410.0,1.0545384]
[1758289748597,0.0969569,116420.0,116410.0,1.0545384]
[1758289748897,0.0969569,116420.0,116410.0,1.0615784]
[1758289749401,0.0969569,116420.0,116410.0,1.8544184]
[1758289749593,0.0969569,116420.0,116410.0,1.0615784]
[1758289749794,0.0969569,116420.0,116410.0,1.8544184]
[1758289751205,0.0111,116420.0,116410.0,1.3892725]
[1758289751499,0.1329069,116420.0,116410.0,0.7186741]
[1758289752597,0.1269069,116420.0,116410.0,0.7186741]
[1758289752800,0.1279069,116420.0,116410.0,0.7186741]
[1758289753198,0.1279069,116420.0,116410.0,0.8045383]
[1758289754004,0.1147669,116420.0,116410.0,0.8115783]
[1758289754198,0.1279069,116420.0,116410.0,0.38394]
[1758289754502,0.1279069,116420.0,116410.0,0.7186741]
[1758289754898,0.1279069,116420.0,116410.0,0.38394]
[1758289755203,0.1279069,116420.0,116410.0,0.82635877]
[1758289755900,0.1279069,116420.0,116410.0,0.49162467]
[1758289756101,0.1279069,116420.0,116410.0,0.82635877]
[1758289757004,0.1279069,116420.0,116410.0,0.49162467]
[1758289757204,0.1279069,116420.0,116410.0,0.82635877]
[1758289757508,0.1279069,116420.0,116410.0,0.7186741]
[1758289758103,0.1279069,116420.0,116410.0,0.91229071]
[1758289758498,0.1279069,116420.0,116410.0,0.8045384]
[1758289759601,0.1279069,116420.0,116410.0,0.4698043]
[1758289759805,0.1279069,116420.0,116410.0,0.8045384]
[1758289760696,0.1279069,116420.0,116410.0,1.0615784]
[1758289760697,0.0919569,116420.0,116410.0,1.0615784]
[1758289762105,0.0919569,116420.0,116410.0,1.8543784]
[1758289762902,0.0919569,116420.0,116410.0,1.5196443]
[1758289763101,0.0919569,116420.0,116410.0,1.8543784]
[1758289763509,0.0061,116420.0,116410.0,1.6043784]
[1758289763711,0.0919569,116420.0,116410.0,1.6043784]
[1758289764010,0.0919569,116420.0,116410.0,0.8115784]
[1758289764314,0.0919569,116420.0,116410.0,1.6043784]
[1758289764908,0.0061,116420.0,116410.0,1.6043784]
[1758289765406,0.0919569,116420.0,116410.0,1.712131]
[1758289765908,0.0061,116420.0,116410.0,1.712131]
[1758289766109,0.0061,116420.0,116410.0,1.6043784]
[1758289766511,0.0061,116420.0,116410.0,1.712131]
[1758289768611,0.0061,116420.0,116410.0,1.8543784]
[1758289768913,0.0061,116420.0,116410.0,2.1891125]
[1758289769815,0.03072553,116440.0,116410.0,2.1891125]
[1758289770007,0.01720553,116440.0,116430.0,1.66277293]
[1758289770211,0.10304773,116440.0,116430.0,1.66277293]
[1758289770521,0.1215698,116450.0,116440.0,0.1078122]
[1758289770814,0.0993598,116450.0,116440.0,0.8033463]
[1758289771018,0.0993598,116450.0,116440.0,1.5960663]
[1758289771828,0.01352,116450.0,116440.0,1.5960663]
[1758289772123,0.0938348,116450.0,116440.0,1.77286059]
[1758289772716,0.0938348,116450.0,116440.0,1.77282059]
[1758289773026,0.0938348,116450.0,116440.0,0.98014059]
[1758289773321,0.0998348,116450.0,116440.0,1.77382059]
[1758289773523,0.0998348,116450.0,116440.0,1.66619814]
[1758289773713,0.0998348,116450.0,116440.0,0.87351814]
[1758289773913,0.0998348,116450.0,116440.0,1.66619814]
[1758289774216,0.0998348,116450.0,116440.0,0.87351814]
[1758289774415,0.1355448,116450.0,116440.0,1.58031594]
[1758289775020,0.1355448,116450.0,116440.0,0.78767594]
[1758289775221,0.1355448,116450.0,116440.0,1.58031594]
[1758289776321,0.1355448,116450.0,116440.0,0.78767594]
[1758289776622,0.1355448,116450.0,116440.0,1.58027594]
[1758289777325,0.1355448,116450.0,116440.0,0.78767594]
[1758289777523,0.1355448,116450.0,116440.0,0.87351814]
[1758289777721,0.1355448,116450.0,116440.0,1.66611814]
[1758289778123,0.1355448,116450.0,116440.0,0.87351814]
[1758289778319,0.1355448,116450.0,116440.0,0.78767594]
[1758289778623,0.1355448,116450.0,116440.0,1.58023594]
[1758289779320,0.1355448,116450.0,116440.0,0.78767594]
[1758289779522,0.1355448,116450.0,116440.0,1.66607814]
[1758289780124,0.1355448,116450.0,116440.0,0.87351814]
[1758289780327,0.1355448,116450.0,116440.0,1.66603814]
[1758289780725,0.1355448,116450.0,116440.0,0.78767594]
[1758289781026,0.1355448,116450.0,116440.0,1.66603814]
[1758289781826,0.1355448,116450.0,116440.0,0.78767594]
[1758289782027,0.1355448,116450.0,116440.0,1.58019594]
[1758289782230,0.1355448,116450.0,116440.0,1.66603804]
[1758289783121,0.1355448,116450.0,116440.0,1.33130394]
[1758289783330,0.1355448,116450.0,116440.0,1.66603804]
[1758289784636,0.014,116450.0,116440.0,2.25077214]
[1758289784831,0.4466423,116500.0,116440.0,2.25077214]
[1758289784832,4e-05,116500.0,116490.0,0.1179153]
[1758289785024,4e-05,116500.0,116490.0,1.15213906]
[1758289785329,4e-05,116500.0,116490.0,1.98267086]
[1758289785534,4e-05,116500.0,116490.0,2.98687316]
[1758289785726,4e-05,116500.0,116490.0,1.98267086]
[1758289785926,0.1214934,116520.0,116510.0,0.02197]
[1758289786232,0.03571,116520.0,116510.0,0.86652364]
[1758289786431,0.05217025,116520.0,116510.0,1.085815]
[1758289786619,0.33788025,116520.0,116510.0,0.4024268]
[1758289786834,0.33788025,116520.0,116510.0,0.7371609]
[1758289787121,0.33788025,116520.0,116510.0,0.4024268]
[1758289787322,0.33788025,116520.0,116510.0,0.0416268]
[1758289787526,0.1215006,116510.0,116500.0,0.02197]
[1758289788230,0.3715006,116510.0,116500.0,0.02197]
[1758289788432,0.0992979,116500.0,116490.0,1.5]
[1758289788626,0.794832,116500.0,116490.0,1.5001]
[1758289788822,0.3492979,116500.0,116490.0,1.8609]
[1758289789022,0.1023969,116510.0,116500.0,0.02197]
[1758289789225,0.02531,116510.0,116500.0,0.817222]
[1758289789430,0.0031,116510.0,116500.0,1.614982]
[1758289790330,0.0888906,116510.0,116500.0,1.614982]
[1758289790830,0.0888906,116510.0,116500.0,1.5261841]
[1758289791032,0.1246006,116510.0,116500.0,0.39669]
[1758289791236,0.1216006,116510.0,116500.0,0.7175041]
[1758289791733,0.1216006,116510.0,116500.0,0.71701923]
[1758289791734,0.45584983,116510.0,116500.0,0.71701923]
[1758289791930,0.3716006,116510.0,116500.0,1.05126846]
[1758289792126,0.3736006,116510.0,116500.0,1.05126846]
[1758289792929,0.3736006,116510.0,116500.0,1.06465846]
[1758289793331,0.3736006,116510.0,116500.0,1.05126846]
[1758289794125,0.70784983,116510.0,116500.0,0.35621923]
[1758289794531,0.0992579,116500.0,116490.0,2.26427766]
[1758289794726,0.0993579,116500.0,116490.0,2.26417766]
[1758289795130,0.0993579,116500.0,116490.0,1.92992843]
[1758289795336,0.43360713,116500.0,116490.0,2.26417766]
[1758289795539,0.0993579,116500.0,116490.0,2.26417766]
[1758289795738,0.0993579,116500.0,116490.0,1.93292843]
[1758289796036,0.0993579,116500.0,116490.0,2.26717766]
[1758289797539,0.1003579,116500.0,116490.0,2.26717766]
[1758289797728,0.1003579,116500.0,116490.0,1.93292843]
[1758289798328,0.1003579,116500.0,116490.0,2.36245221]
[1758289798928,0.1003579,116500.0,116490.0,2.35079221]
[1758289799133,0.1003579,116500.0,116490.0,1.93292843]
[1758289799335,0.1003579,116500.0,116490.0,1.57212843]
[1758289799336,1.12902168,116500.0,116490.0,1.57212843]
[1758289799739,1.16853679,116500.0,116490.0,0.07212843]
[1758289799930,1.16853679,116500.0,116490.0,0.04259693]
[1758289800130,1.16853679,116500.0,116490.0,0.003]
[1758289800330,1.54779301,116500.0,116490.0,0.003]
[1758289800829,1.96565679,116500.0,116490.0,0.003]
[1758289801041,1.96565679,116500.0,116480.0,1.5001]
[1758289801238,0.12167,116470.0,116460.0,0.40244357]
[1758289801539,0.12167,116470.0,116450.0,0.38209]
[1758289801540,0.1216774,116460.0,116450.0,0.38209]
[1758289801731,0.1216774,116460.0,116450.0,1.52129]
[1758289802434,0.1216774,116460.0,116450.0,1.88209]
[1758289802831,0.1216774,116460.0,116450.0,2.29995378]
[1758289803036,0.1080774,116460.0,116450.0,2.31276378]
[1758289803230,0.1216774,116460.0,116450.0,1.8949]
[1758289803742,0.1216774,116460.0,116450.0,2.38190222]
[1758289804637,0.1080774,116460.0,116450.0,2.38990222]
[1758289804940,0.1080774,116460.0,116450.0,2.72873702]
[1758289804941,0.0858274,116460.0,116450.0,2.72873702]
[1758289805145,0.0175706,116470.0,116460.0,0.1199274]
[1758289805335,0.1033949,116470.0,116460.0,0.89859118]
[1758289805530,0.1033949,116470.0,116460.0,0.81276378]
[1758289805830,0.1256449,116470.0,116460.0,0.81276378]
[1758289806035,0.1256449,116470.0,116460.0,0.4807274]
[1758289806236,0.1256449,116470.0,116460.0,0.82076378]
[1758289806437,0.1256449,116470.0,116460.0,0.91059118]
[1758289807340,0.1256449,116470.0,116460.0,0.82476378]
[1758289807739,0.1392449,116470.0,116460.0,0.39409]
[1758289809138,1.35410868,116470.0,116460.0,0.3728]
[1758289809643,0.9362449,116470.0,116460.0,0.012]
[1758289809835,1.35410868,116470.0,116460.0,0.012]
[1758289810034,0.9362449,116470.0,116460.0,0.012]
[1758289810542,1.35410868,116470.0,116460.0,0.012]
[1758289811141,1.35410868,116470.0,116460.0,0.03329]
[1758289811331,1.35410868,116470.0,116460.0,0.012]
[1758289811535,1.60410868,116470.0,116460.0,0.012]
[1758289813646,0.3892449,116470.0,116460.0,0.012]
[1758289813841,1.60346868,116470.0,116460.0,0.03329]
[1758289814045,1.60346868,116470.0,116460.0,0.012]
[1758289814242,0.0858274,116460.0,116450.0,0.42993844]
[1758289814442,0.90034118,116460.0,116450.0,0.06913844]
[1758289814646,0.90034118,116460.0,116440.0,0.0001]
[1758289814647,0.1216848,116450.0,116440.0,0.0001]
[1758289814847,0.1216921,116440.0,116430.0,0.38219]
[1758289815149,0.1216921,116440.0,116430.0,0.44959906]
[1758289815447,0.1216921,116440.0,116430.0,1.92830906]
[1758289815643,0.1216921,116440.0,116430.0,1.56750906]
[1758289816035,0.9182121,116440.0,116430.0,1.57450906]
[1758289816448,0.9182121,116440.0,116430.0,0.07450906]
[1758289816751,0.9181321,116440.0,116430.0,0.07450906]
[1758289817149,0.9180521,116440.0,116430.0,0.07450906]
[1758289818352,0.1216921,116440.0,116430.0,0.09579906]
[1758289818747,0.9177321,116440.0,116430.0,0.45659906]
[1758289819052,0.9177321,116440.0,116430.0,0.87446284]
[1758289819251,0.9177321,116440.0,116430.0,0.09579906]
[1758289819548,0.9177321,116440.0,116430.0,0.45659906]
[1758289819953,0.1216921,116440.0,116430.0,0.45659906]
[1758289820148,0.9179921,116440.0,116430.0,0.46940906]
[1758289820353,0.9179921,116440.0,116430.0,0.87446284]
[1758289820652,0.9179921,116440.0,116430.0,0.51366284]
[1758289820852,0.9179921,116440.0,116430.0,0.09579906]
[1758289823044,0.9179921,116440.0,116430.0,0.45659906]
[1758289823651,0.9179921,116440.0,116430.0,0.09579906]
[1758289824154,1.33585588,116440.0,116430.0,0.07450906]
[1758289825158,0.9174321,116440.0,116430.0,0.09780906]
[1758289825358,0.9173121,116440.0,116430.0,0.09780906]
[1758289825562,0.9173121,116440.0,116430.0,0.45860906]
[1758289826263,0.1217921,116440.0,116430.0,0.45860906]
[1758289826464,0.9172721,116440.0,116430.0,0.45860906]
[1758289826666,0.1217921,116440.0,116430.0,0.54445856]
[1758289826968,0.9169921,116440.0,116430.0,0.96232234]
[1758289827863,1.3525475,116440.0,116430.0,0.07450906]
[1758289828970,0.9181475,116440.0,116430.0,0.09780906]
[1758289829162,1.3524675,116440.0,116430.0,0.09780906]
[1758289829357,0.1217921,116440.0,116430.0,0.45860906]
[1758289829564,0.9032321,116440.0,116430.0,0.97550234]
[1758289829870,0.9167921,116440.0,116430.0,1.22550234]
[1758289830066,0.9167921,116440.0,116430.0,1.13965284]
[1758289830566,1.33465588,116440.0,116430.0,0.09780906]
[1758289830868,1.69545588,116440.0,116430.0,0.07450906]
[1758289832260,1.69545588,116440.0,116430.0,0.45860906]
[1758289832261,0.53961588,116440.0,116430.0,0.45860906]
[1758289832465,0.1217521,116440.0,116430.0,0.45860906]
[1758289832970,0.9169121,116440.0,116430.0,0.45860906]
[1758289833168,0.1217521,116440.0,116430.0,0.45860906]
[1758289833367,0.9169121,116440.0,116430.0,0.45860906]
[1758289835673,0.9166721,116440.0,116430.0,0.96232234]
[1758289836576,0.9166721,116440.0,116430.0,0.87647284]
[1758289836867,0.9166721,116440.0,116430.0,0.54445856]
[1758289837073,0.9166721,116440.0,116430.0,0.45860906]
[1758289838375,0.1217521,116440.0,116430.0,0.54445856]
[1758289838566,0.9162321,116440.0,116430.0,0.54445856]
[1758289838767,0.9162321,116440.0,116430.0,0.45860906]
[1758289839475,0.9162321,116440.0,116430.0,0.54445856]
[1758289844881,0.9162321,116440.0,116430.0,0.45860906]
[1758289845381,0.9162321,116440.0,116430.0,0.54445856]
[1758289845574,0.9162321,116440.0,116430.0,0.45860906]
[1758289845775,1.25086519,116440.0,116430.0,0.79324215]
[1758289845977,1.58549828,116440.0,116430.0,0.43244215]
[1758289846381,1.58549828,116440.0,116430.0,0.09780906]
[1758289846581,1.58549828,116440.0,116430.0,0.43244215]
[1758289847176,1.58549828,116440.0,116430.0,0.09980906]
[1758289847478,1.58549828,116440.0,116430.0,0.43444215]
[1758289847683,0.9162321,116440.0,116430.0,0.43144215]
[1758289847886,1.25086519,116440.0,116430.0,0.43144215]
[1758289848377,1.25086519,116440.0,116430.0,0.79224215]
[1758289848780,1.25086519,116440.0,116430.0,0.87809165]
[1758289849282,1.25086519,116440.0,116430.0,0.79224215]
[1758289850782,0.45638519,116440.0,116430.0,0.87809165]
[1758289851082,0.0859421,116440.0,116430.0,1.4956986]
[1758289851280,0.0001,116440.0,116430.0,1.4956986]
[1758289852180,0.0859421,116440.0,116430.0,1.4956986]
[1758289853786,0.0859421,116440.0,116430.0,1.49552642]
[1758289856086,0.0859421,116440.0,116430.0,1.40967692]
[1758289856294,0.0859421,116440.0,116430.0,1.49552632]
[1758289857396,0.1075421,116440.0,116430.0,1.49552632]
[1758289857692,0.1075421,116440.0,116430.0,1.49552642]
[1758289858000,0.1075421,116440.0,116430.0,1.16097942]
[1758289858184,0.4557091,116440.0,116430.0,0.47740292]
[1758289860801,0.7057091,116440.0,116430.0,0.07350906]
[1758289860990,0.7057091,116440.0,116430.0,0.20240151]
[1758289861388,1.4987891,116440.0,116430.0,0.09477906]
[1758289861995,1.4987891,116440.0,116430.0,0.07350906]
[1758289862300,1.87693315,116440.0,116430.0,0.07350906]
[1758289862688,1.87693315,116440.0,116430.0,0.006]
[1758289863392,1.08385315,116440.0,116430.0,0.006]
[1758289863593,1.87697315,116440.0,116430.0,0.006]
[1758289863793,1.87693315,116440.0,116430.0,0.006]
[1758289864699,1.87697315,116440.0,116430.0,0.006]
[1758289866406,1.08385315,116440.0,116430.0,0.006]
[1758289866703,1.87697315,116440.0,116430.0,0.006]
[1758289868104,1.08385315,116440.0,116430.0,0.006]
[1758289868302,0.74930615,116440.0,116430.0,0.006]
[1758289868594,1.08385315,116440.0,116430.0,0.006]
[1758289868993,1.87697315,116440.0,116430.0,0.006]
[1758289870806,1.08385315,116440.0,116430.0,0.006]
[1758289871105,1.87697315,116440.0,116430.0,0.006]
[1758289871503,1.54242615,116440.0,116430.0,0.006]
[1758289871697,0.12434825,116440.0,116430.0,0.361817]
[1758289871899,0.12434825,116440.0,116430.0,0.985807]
[1758289871900,0.91746825,116440.0,116430.0,0.985807]
[1758289872100,0.90384825,116440.0,116430.0,1.0716565]
[1758289872299,0.11072825,116440.0,116430.0,1.0716565]
[1758289872609,0.90384825,116440.0,116430.0,1.0716565]
[1758289873112,0.90384825,116440.0,116430.0,1.17927895]
[1758289873402,0.90384825,116440.0,116430.0,0.84473195]
[1758289874001,0.91667825,116440.0,116430.0,0.74569245]
[1758289874206,0.91667825,116440.0,116430.0,1.08023945]
[1758289874508,0.91667825,116440.0,116430.0,0.74569245]
[1758289875106,0.90384825,116440.0,116430.0,1.09342945]
[1758289875506,0.91667825,116440.0,116430.0,0.74569245]
[1758289875808,1.25122525,116440.0,116430.0,0.83023945]
[1758289876102,1.25122525,116440.0,116430.0,0.49569245]
[1758289876309,1.25122525,116440.0,116430.0,0.38807]
[1758289876608,1.25122525,116440.0,116430.0,0.49569245]
[1758289876907,0.91667825,116440.0,116430.0,0.83023945]
[1758289877312,0.91667825,116440.0,116430.0,0.49569245]
[1758289877508,0.91667825,116440.0,116430.0,0.83023945]
[1758289877809,0.91667825,116440.0,116430.0,0.91608895]
[1758289878009,0.91667825,116440.0,116430.0,0.83023945]
[1758289878211,0.91667825,116440.0,116430.0,0.722617]
[1758289878902,0.91667825,116440.0,116430.0,0.38807]
[1758289879300,0.12355825,116440.0,116430.0,0.8216565]
[1758289879511,0.90380825,116440.0,116430.0,0.92927895]
[1758289880402,0.11072825,116440.0,116430.0,0.92927895]
[1758289880803,0.8864642,116440.0,116430.0,1.26382595]
[1758289881205,0.0933842,116440.0,116430.0,1.51382595]
[1758289881411,0.8789221,116440.0,116430.0,1.51382595]
[1758289881711,0.8789221,116440.0,116430.0,1.51382585]
[1758289882111,0.8789221,116440.0,116430.0,1.17927885]
[1758289882312,0.9001921,116440.0,116430.0,0.84473185]
[1758289882611,0.9001921,116440.0,116430.0,1.17927885]
[1758289883311,0.9001921,116440.0,116430.0,1.09342945]
[1758289884514,0.9001921,116440.0,116430.0,1.17927895]
[1758289885009,0.9001921,116440.0,116430.0,1.09342945]
[1758289886514,0.9001921,116440.0,116430.0,1.17927885]
[1758289887208,0.8788821,116440.0,116430.0,1.17927885]
[1758289888316,0.0858421,116440.0,116430.0,1.51382585]
[1758289888612,0.8788821,116440.0,116430.0,1.51382585]
[1758289888812,0.8788821,116440.0,116430.0,1.4062034]
[1758289889116,0.0858421,116440.0,116430.0,1.0716564]
[1758289889812,0.0858421,116440.0,116430.0,1.320354]
[1758289890015,0.0858421,116440.0,116430.0,1.0716565]
[1758289890208,0.1083121,116440.0,116430.0,0.7371095]
[1758289890414,0.1083121,116440.0,116430.0,1.0716565]
[1758289894419,0.1083121,116440.0,116430.0,0.985807]
[1758289895217,0.1083121,116440.0,116430.0,1.0716565]
[1758289896518,0.1083121,116440.0,116430.0,0.7371095]
[1758289897020,0.1083121,116440.0,116430.0,1.0716565]
[1758289899320,0.1083121,116440.0,116430.0,0.8216565]
[1758289899521,0.1083121,116440.0,116430.0,0.4871095]
[1758289900116,0.1083121,116440.0,116430.0,0.8216565]
[1758289900418,0.1083121,116440.0,116430.0,0.735807]
[1758289901121,0.1083121,116440.0,116430.0,0.40126]
[1758289901307,0.1210921,116440.0,116430.0,0.735807]
[1758289902420,0.9140521,116440.0,116430.0,0.8216565]
[1758289902919,0.9140521,116440.0,116430.0,1.1562035]
[1758289902920,0.1083121,116440.0,116430.0,1.1562035]
[1758289903520,0.9012721,116440.0,116430.0,1.1562035]
[1758289904015,0.9012721,116440.0,116430.0,0.8216565]
[1758289904522,0.9012721,116440.0,116430.0,0.735807]
[1758289905320,0.9012721,116440.0,116430.0,0.8216565]
[1758289905824,0.9140521,116440.0,116430.0,0.97540173]
[1758289906018,0.9140521,116440.0,116430.0,0.88955223]
[1758289909026,0.9140121,116440.0,116430.0,0.88955223]
[1758289909324,0.9012321,116440.0,116430.0,0.735807]
[1758289909727,0.1083121,116440.0,116430.0,0.735807]
[1758289910025,0.9012321,116440.0,116430.0,0.8216565]
[1758289910327,0.9012321,116440.0,116430.0,0.735807]
[1758289911229,0.9012321,116440.0,116430.0,0.8216565]
[1758289911823,0.9012321,116440.0,116430.0,0.735807]
[1758289912028,0.9140121,116440.0,116430.0,0.735807]
[1758289913628,0.9140121,116440.0,116430.0,0.40126]
[1758289913830,0.9140121,116440.0,116430.0,0.73586481]
[1758289914226,0.9140121,116440.0,116430.0,0.84364755]
[1758289915326,1.24861691,116440.0,116430.0,0.84364755]
[1758289916636,1.24861691,116440.0,116430.0,0.73586481]
[1758289917232,1.24861691,116440.0,116430.0,0.36187481]
[1758289917434,1.24861691,116440.0,116430.0,0.83045812]
[1758289918142,1.58322172,116440.0,116430.0,0.83045812]
[1758289918336,1.85069339,116440.0,116430.0,0.49585331]
[1758289918639,1.85069339,116440.0,116430.0,0.11378331]
[1758289918837,1.85061339,116440.0,116430.0,0.13553331]
[1758289919133,1.85061339,116440.0,116430.0,0.02775]
[1758289919537,1.85061339,116440.0,116430.0,0.36235481]
[1758289919835,1.85061339,116440.0,116430.0,0.02775]
[1758289920034,1.85061339,116440.0,116430.0,0.36235481]
[1758289920242,1.18140377,116440.0,116430.0,0.36235481]
[1758289920734,1.51600858,116440.0,116430.0,0.73651481]
[1758289921136,1.18140377,116440.0,116430.0,0.73651481]
[1758289921633,0.72316858,116440.0,116430.0,0.84429812]
[1758289922235,1.51600858,116440.0,116430.0,0.84429812]
[1758289922435,1.51600858,116440.0,116430.0,0.83093812]
[1758289922637,1.18140377,116440.0,116430.0,0.83093812]
[1758289922942,1.51600858,116440.0,116430.0,0.83093812]
[1758289923432,1.51600858,116440.0,116430.0,0.49633331]
[1758289923834,1.51600858,116440.0,116430.0,0.83093812]
[1758289924042,1.51600858,116440.0,116430.0,0.49633331]
[1758289924238,1.51600858,116440.0,116430.0,0.83093812]
[1758289924742,1.18140377,116440.0,116430.0,0.83093812]
[1758289925038,0.72316858,116440.0,116430.0,0.83093812]
[1758289925242,1.51600858,116440.0,116430.0,0.83093812]
[1758289925444,1.51600858,116440.0,116430.0,0.72315481]
[1758289925742,1.51600858,116440.0,116430.0,0.38855]
[1758289925941,1.51600858,116440.0,116430.0,0.72315481]
[1758289926339,1.51600858,116440.0,116430.0,0.38855]
[1758289926536,1.51600858,116440.0,116430.0,0.72315481]
[1758289926938,0.72316858,116440.0,116430.0,0.72315481]
[1758289927138,1.51596858,116440.0,116430.0,0.72315481]
[1758289927330,1.18136377,116440.0,116430.0,0.72315481]
[1758289927535,1.51596858,116440.0,116430.0,0.72315481]
[1758289929448,1.51596858,116440.0,116430.0,0.83086964]
[1758289929634,1.18136377,116440.0,116430.0,0.49626483]
[1758289929838,1.51596858,116440.0,116430.0,0.72315481]
[1758289930445,0.46038858,116440.0,116430.0,0.73651481]
[1758289930744,0.1083121,116440.0,116430.0,0.82236431]
[1758289931045,0.9010721,116440.0,116430.0,0.82236431]
[1758289932049,0.9010721,116440.0,116430.0,1.15696912]
[1758289933748,0.9010721,116440.0,116430.0,0.82236431]
[1758289934143,0.9010721,116440.0,116430.0,0.82236421]
[1758289934538,0.9010721,116440.0,116430.0,0.4877594]
[1758289934740,0.9010721,116440.0,116430.0,0.82236421]
[1758289935739,0.9010721,116440.0,116430.0,0.73651481]
[1758289935942,1.24856691,116440.0,116430.0,0.73651481]
[1758289936251,0.9139621,116440.0,116430.0,0.38855]
[1758289936452,1.24856691,116440.0,116430.0,0.82236421]
[1758289936750,0.9139621,116440.0,116430.0,0.82236421]
[1758289936948,1.24856691,116440.0,116430.0,0.82236421]
[1758289937952,0.9139621,116440.0,116430.0,0.82236421]
[1758289938155,1.24856691,116440.0,116430.0,0.82236421]
[1758289938454,0.1083121,116440.0,116430.0,0.82236421]
[1758289938644,0.9009921,116440.0,116430.0,0.82236421]
[1758289940553,0.9009921,116440.0,116430.0,0.93002053]